[Event "KAZ-ch Men 2017"]
[Site "Almaty"]
[Date "2017.04.11"]
[Round "1"]
[White "Zhanat, Saiyn"]
[Black "Zhandos, Agmanov"]
[Result "1/2-1/2"]
[ECO "E12"]
[WhiteElo "2395"]
[BlackElo "2377"]
[Annotator "ChessBase"]
[PlyCount "92"]
[EventDate "2017.??.??"]
[EventType "tourn"]
[EventCountry "KAZ"]
[SourceTitle "playchess.com"]
[Source "ChessBase"]
[SourceQuality "1"]
[TimeControl "40/5400+30:1800+30"]

1. d4 {[%emt 0:00:00]} Nf6 {[%emt 0:00:44]} 2. Nf3 {[%emt 0:00:00]} e6 {[%emt 0:00:29]} 3. c4 {[%emt 0:00:00]} b6 {[%emt 0:00:40]} 4. a3 {[%emt 0:00:00]} Bb7 {[%emt 0:02:31]} 5. Nc3 {[%emt 0:00:00]} d5 {[%emt 0:02:25]} 6. Bg5 {[%emt 0:00:11]} Be7 {[%emt 0:01:06]} 7. e3 {[%emt 0:00:06]} O-O {[%emt 0:01:13]} 8. Qc2 {[%emt 0:00:39]} Nbd7 {[%emt 0:01:36]} 9. cxd5 {[%emt 0:00:53]} Nxd5 {[%emt 0:00:42]} 10. Bxe7 {[%emt 0:00:56]} Qxe7 {[%emt 0:00:13]} 11. Nxd5 {[%emt 0:18:38]} Bxd5 {[%emt 0:00:12]} 12. Bd3 {[%emt 0:37:48]} Bxf3 {[%emt 0:00:51]} 13. gxf3 {[%emt 0:02:02]} Nf6 {[%emt 0:00:27]} 14. Rc1 {[%emt 0:03:09]} c5 {[%emt 0:00:30]} 15. dxc5 {[%emt 0:01:20]} bxc5 {[%emt 0:00:12]} 16. Qxc5 {[%emt 0:06:52]} Qb7 {[%emt 0:00:13]} 17. Ke2 {[%emt 0:03:39]} Qxb2+ {[%emt 0:07:46]} 18. Rc2 {[%emt 0:00:18]} Qb6 {[%emt 0:03:53]} 19. a4 {[%emt 0:03:52]} Nd7 {[%emt 0:06:35]} 20. Qb5 {[%emt 0:05:46]} Rfd8 {[%emt 0:11:18]} 21. Rd1 {[%emt 0:04:44]} Nf6 {[%emt 0:08:17]} 22. Rc6 {[%emt 0:06:56]} Qb8 {[%emt 0:04:01]} 23. Qxb8 {[%emt 0:02:03]} Raxb8 {[%emt 0:00:32]} 24. Bb5 {[%emt 0:00:39]} Nd5 {[%emt 0:02:05]} 25. Rd4 {[%emt 0:01:09]} g6 {[%emt 0:01:36]} 26. f4 {[%emt 0:00:40]} Kg7 {[%emt 0:03:46]} 27. Kf3 {[%emt 0:00:13]} Rdc8 {[%emt 0:03:44]} 28. Rdc4 {[%emt 0:00:39]} Rxc6 {[%emt 0:01:39]} 29. Rxc6 {[%emt 0:00:13]} Rb7 {[%emt 0:03:21]} 30. e4 {[%emt 0:00:56]} Nc7 {[%emt 0:06:25]} 31. Bc4 {[%emt 0:00:29]} Kf6 {[%emt 0:00:58]} 32. a5 {[%emt 0:00:22]} a6 {[%emt 0:00:56]} 33. Bxa6 {[%emt 0:00:39]} Rb3+ {[%emt 0:01:05]} 34. Kg2 {[%emt 0:00:09]} Nxa6 {[%emt 0:00:13]} 35. Rxa6 {[%emt 0:00:03]} Ra3 {[%emt 0:01:16]} 36. Ra7 {[%emt 0:00:52]} h5 {[%emt 0:00:23]} 37. h4 {[%emt 0:00:47]} Ra4 {[%emt 0:00:30]} 38. Kf3 {[%emt 0:00:25]} Ra3+ {[%emt 0:00:06]} 39. Kg2 {[%emt 0:00:05]} Ra4 {[%emt 0:00:04]} 40. f3 {[%emt 0:00:04]} Ra2+ {[%emt 0:30:06]} 41. Kg3 {[%emt 0:30:11]} Ra4 {[%emt 0:00:57]} 42. a6 {[%emt 0:00:31]} Ra2 {[%emt 0:00:17]} 43. Ra8 {[%emt 0:00:11]} Ra4 {[%emt 0:05:13]} 44. Kg2 {[%emt 0:01:46]} Ra2+ {[%emt 0:00:12]} 45. Kh3 {[%emt 0:00:25]} Ra3 {[%emt 0:00:58]} 46. Kg3 {[%emt 0:00:06]} Ra4 {[%emt 0:00:06]} 1/2-1/2

[Event "KAZ-ch Men 2017"]
[Site "Almaty"]
[Date "2017.04.12"]
[Round "2"]
[White "Nugumanov, Bakhtiyar"]
[Black "Makhnyov, Denis"]
[Result "1/2-1/2"]
[ECO "C54"]
[WhiteElo "2350"]
[BlackElo "2379"]
[Annotator "ChessBase"]
[PlyCount "57"]
[EventDate "2017.??.??"]
[EventType "tourn"]
[EventCountry "KAZ"]
[SourceTitle "playchess.com"]
[Source "ChessBase"]
[SourceQuality "1"]
[TimeControl "40/5400+30:1800+30"]

1. e4 {[%emt 0:01:39]} e5 {[%emt 0:01:03]} 2. Nf3 {[%emt 0:00:24]} Nc6 {[%emt 0:00:06]} 3. Bc4 {[%emt 0:00:04]} Bc5 {[%emt 0:00:03]} 4. c3 {[%emt 0:00:19]} Nf6 {[%emt 0:00:07]} 5. d4 {[%emt 0:00:28]} exd4 {[%emt 0:00:09]} 6. e5 {[%emt 0:00:10]} d5 {[%emt 0:00:57]} 7. Be2 {[%emt 0:00:21]} Ne4 {[%emt 0:00:08]} 8. cxd4 {[%emt 0:00:11]} Bb6 {[%emt 0:01:32]} 9. O-O {[%emt 0:02:48]} O-O {[%emt 0:00:39]} 10. Nc3 {[%emt 0:00:33]} Bg4 {[%emt 0:04:25]} 11. Be3 {[%emt 0:00:26]} f6 {[%emt 0:00:19]} 12. exf6 {[%emt 0:02:52]} Nxf6 {[%emt 0:00:08]} 13. Na4 {[%emt 0:01:58]} Qe7 {[%emt 0:04:32]} 14. Rc1 {[%emt 0:03:30]} Rae8 {[%emt 0:02:21]} 15. Re1 {[%emt 0:05:51]} Ba5 {[%emt 0:00:56]} 16. Nc3 {[%emt 0:05:27]} Nd8 {[%emt 0:03:12]} 17. Ne5 {[%emt 0:05:09]} Bxe2 {[%emt 0:00:06]} 18. Qxe2 {[%emt 0:01:08]} c6 {[%emt 0:00:08]} 19. a3 {[%emt 0:04:22]} Bxc3 {[%emt 0:09:08]} 20. Rxc3 {[%emt 0:03:42]} Ne4 {[%emt 0:00:30]} 21. Rcc1 {[%emt 0:01:03]} Nf7 {[%emt 0:00:12]} 22. Nd3 {[%emt 0:03:59]} Ned6 {[%emt 0:01:52]} 23. Qg4 {[%emt 0:04:10]} Qe4 {[%emt 0:03:53]} 24. Qd1 {[%emt 0:03:06]} Qf5 {[%emt 0:10:43]} 25. b3 {[%emt 0:03:58]} Re7 {[%emt 0:04:36]} 26. f3 {[%emt 0:03:33]} Rfe8 {[%emt 0:01:42]} 27. Qd2 {[%emt 0:00:14]} Qf6 {[%emt 0:00:30]} 28. Bf2 {[%emt 0:03:01]} Nf5 {[%emt 0:17:50]} 29. Rxe7 {[%emt 0:07:09]} 1/2-1/2

[Event "KAZ-ch Men 2017"]
[Site "Almaty"]
[Date "2017.04.12"]
[Round "2"]
[White "Akhmetov, Ayan"]
[Black "Saiyn, Zhanat"]
[Result "1-0"]
[ECO "B06"]
[WhiteElo "2311"]
[BlackElo "2395"]
[Annotator "ChessBase"]
[PlyCount "91"]
[EventDate "2017.??.??"]
[EventType "tourn"]
[EventCountry "KAZ"]
[SourceTitle "playchess.com"]
[Source "ChessBase"]
[SourceQuality "1"]
[TimeControl "40/5400+30:1800+30"]

1. e4 {[%emt 0:11:12]} g6 {[%emt 0:00:05]} 2. d4 {[%emt 0:00:16]} d6 {[%emt 0:00:51]} 3. Nf3 {[%emt 0:00:16]} Bg7 {[%emt 0:00:05]} 4. Bc4 {[%emt 0:00:05]} a6 {[%emt 0:02:17]} 5. a4 {[%emt 0:00:48]} Nf6 {[%emt 0:00:57]} 6. Qe2 {[%emt 0:00:22]} O-O {[%emt 0:03:23]} 7. O-O {[%emt 0:00:38]} Bg4 {[%emt 0:01:44]} 8. h3 {[%emt 0:02:07]} Bxf3 {[%emt 0:00:07]} 9. Qxf3 {[%emt 0:00:07]} Nc6 {[%emt 0:00:21]} 10. c3 {[%emt 0:08:14]} e5 {[%emt 0:01:59]} 11. Bd5 {[%emt 0:06:51]} Nxd5 {[%emt 0:10:58]} 12. exd5 {[%emt 0:00:07]} Ne7 {[%emt 0:00:04]} 13. dxe5 {[%emt 0:00:21]} dxe5 {[%emt 0:02:41]} 14. Rd1 {[%emt 0:00:15]} Qd7 {[%emt 0:06:30]} 15. Be3 {[%emt 0:04:42]} Nf5 {[%emt 0:01:28]} 16. Nd2 {[%emt 0:04:08]} Nd6 {[%emt 0:13:24]} 17. c4 {[%emt 0:06:54]} f5 {[%emt 0:02:58]} 18. c5 {[%emt 0:01:47]} e4 {[%emt 0:09:42]} 19. Qe2 {[%emt 0:06:28]} f4 {[%emt 0:08:05]} 20. Bxf4 {[%emt 0:11:07]} Rxf4 {[%emt 0:00:14]} 21. cxd6 {[%emt 0:00:05]} cxd6 {[%emt 0:03:08]} 22. Nxe4 {[%emt 0:01:45]} Bxb2 {[%emt 0:03:10]} 23. Rab1 {[%emt 0:01:36]} Bg7 {[%emt 0:15:49]} 24. Ng5 {[%emt 0:04:44]} Rxa4 {[%emt 0:01:12]} 25. Rxb7 {[%emt 0:01:43]} Qxb7 {[%emt 0:02:51]} 26. Qe6+ {[%emt 0:00:18]} Kh8 {[%emt 0:00:09]} 27. Nf7+ {[%emt 0:00:04]} Qxf7 {[%emt 0:00:08]} 28. Qxf7 {[%emt 0:00:06]} Ra1 {[%emt 0:07:11]} 29. Rxa1 {[%emt 0:00:43]} Bxa1 {[%emt 0:00:06]} 30. Qe7 {[%emt 0:02:53]} Be5 {[%emt 0:00:47]} 31. f4 {[%emt 0:00:12]} Bd4+ {[%emt 0:01:50]} 32. Kh2 {[%emt 0:00:06]} Bc5 {[%emt 0:00:26]} 33. h4 {[%emt 0:00:39]} Kg8 {[%emt 0:01:43]} 34. h5 {[%emt 0:02:33]} gxh5 {[%emt 0:00:22]} 35. f5 {[%emt 0:01:42]} Ra7 {[%emt 0:00:23]} 36. Qd8+ {[%emt 0:03:49]} Kg7 {[%emt 0:00:13]} 37. Qg5+ {[%emt 0:02:10]} Kf8 {[%emt 0:01:01]} 38. Qh6+ {[%emt 0:00:04]} Kg8 {[%emt 0:00:34]} 39. Qxh5 {[%emt 0:00:06]} Rf7 {[%emt 0:00:32]} 40. g4 {[%emt 0:01:31]} Kf8 {[%emt 0:30:30]} 41. Qh6+ {[%emt 0:30:16]} Kg8 {[%emt 0:00:00]} 42. Qe6 {[%emt 0:00:00]} a5 {[%emt 0:00:00]} 43. g5 {[%emt 0:00:00]} Kg7 {[%emt 0:00:00]} 44. f6+ {[%emt 0:00:00]} Kg8 {[%emt 0:00:00]} 45. g6 {[%emt 0:00:00]} hxg6 {[%emt 0:00:00]} 46. Qe8+ {[%emt 0:00:00]} 1-0

[Event "KAZ-ch Men 2017"]
[Site "Almaty"]
[Date "2017.04.15"]
[Round "5"]
[White "Saiyn, Zhanat"]
[Black "Nugumanov, Bakhtiyar"]
[Result "1/2-1/2"]
[ECO "E00"]
[WhiteElo "2395"]
[BlackElo "2350"]
[Annotator "ChessBase"]
[PlyCount "150"]
[EventDate "2017.??.??"]
[EventType "tourn"]
[EventCountry "KAZ"]
[SourceTitle "playchess.com"]
[Source "ChessBase"]
[SourceQuality "1"]
[TimeControl "40/5400+30:1800+30"]

1. d4 {[%emt 0:04:09]} e6 {[%emt 0:00:25]} 2. c4 {[%emt 0:00:28]} Bb4+ {[%emt 0:00:06]} 3. Nd2 {[%emt 0:02:05]} d5 {[%emt 0:02:55]} 4. Qa4+ {[%emt 0:00:41]} Nc6 {[%emt 0:00:27]} 5. a3 {[%emt 0:00:54]} Be7 {[%emt 0:04:11]} 6. Ngf3 {[%emt 0:00:46]} Nf6 {[%emt 0:01:21]} 7. e3 {[%emt 0:04:19]} O-O {[%emt 0:01:05]} 8. Qc2 {[%emt 0:00:07]} b6 {[%emt 0:08:10]} 9. Bd3 {[%emt 0:17:48]} Bb7 {[%emt 0:00:33]} 10. O-O {[%emt 0:00:38]} a5 {[%emt 0:05:59]} 11. b3 {[%emt 0:00:30]} Nb8 {[%emt 0:07:22]} 12. e4 {[%emt 0:14:15]} dxe4 {[%emt 0:02:39]} 13. Nxe4 {[%emt 0:00:10]} Nbd7 {[%emt 0:00:29]} 14. Bb2 {[%emt 0:00:56]} Nxe4 {[%emt 0:05:58]} 15. Bxe4 {[%emt 0:00:11]} Bxe4 {[%emt 0:00:15]} 16. Qxe4 {[%emt 0:00:14]} c5 {[%emt 0:01:25]} 17. Rad1 {[%emt 0:09:46]} Nf6 {[%emt 0:04:37]} 18. Qc6 {[%emt 0:13:29]} Qb8 {[%emt 0:05:44]} 19. Rfe1 {[%emt 0:08:47]} Rc8 {[%emt 0:08:35]} 20. Qb5 {[%emt 0:01:03]} a4 {[%emt 0:04:15]} 21. bxa4 {[%emt 0:00:47]} Ra5 {[%emt 0:05:43]} 22. Qb3 {[%emt 0:00:05]} cxd4 {[%emt 0:00:45]} 23. Bxd4 {[%emt 0:01:03]} Qa8 {[%emt 0:00:24]} 24. Bxb6 {[%emt 0:09:36]} Rxa4 {[%emt 0:00:15]} 25. Ne5 {[%emt 0:01:07]} Rxa3 {[%emt 0:02:33]} 26. Qb5 {[%emt 0:02:57]} Qb7 {[%emt 0:04:09]} 27. Nd7 {[%emt 0:01:37]} Ne4 {[%emt 0:01:02]} 28. Qe5 {[%emt 0:01:33]} Rxc4 {[%emt 0:03:35]} 29. Bd4 {[%emt 0:02:52]} Nf6 {[%emt 0:00:32]} 30. Bc5 {[%emt 0:01:31]} Nxd7 {[%emt 0:05:09]} 31. Bxe7 {[%emt 0:00:05]} Ra8 {[%emt 0:00:48]} 32. Qd6 {[%emt 0:00:35]} Nf8 {[%emt 0:01:07]} 33. Rb1 {[%emt 0:00:48]} Qc8 {[%emt 0:01:45]} 34. Bxf8 {[%emt 0:00:35]} Qxf8 {[%emt 0:00:01]} 35. Qxf8+ {[%emt 0:00:19]} Kxf8 {[%emt 0:00:23]} 36. Rec1 {[%emt 0:00:06]} Rxc1+ {[%emt 0:00:17]} 37. Rxc1 {[%emt 0:00:04]} Ke7 {[%emt 0:00:38]} 38. h4 {[%emt 0:00:14]} Ra7 {[%emt 0:00:43]} 39. g3 {[%emt 0:00:05]} Kf6 {[%emt 0:00:28]} 40. Kg2 {[%emt 0:00:20]} e5 {[%emt 0:30:55]} 41. Rc5 {[%emt 0:31:09]} Kf5 {[%emt 0:00:41]} 42. Rb5 {[%emt 0:00:18]} f6 {[%emt 0:00:27]} 43. Rb4 {[%emt 0:00:13]} h5 {[%emt 0:00:44]} 44. Rc4 {[%emt 0:00:15]} Ra2 {[%emt 0:00:39]} 45. Rc7 {[%emt 0:00:45]} g6 {[%emt 0:01:11]} 46. Re7 {[%emt 0:01:21]} Ra6 {[%emt 0:04:46]} 47. Rg7 {[%emt 0:00:00]} Re6 {[%emt 0:00:00]} 48. Rg8 {[%emt 0:00:00]} e4 {[%emt 0:00:00]} 49. Rg7 {[%emt 0:00:00]} Rd6 {[%emt 0:00:00]} 50. Re7 {[%emt 0:00:00]} Rd2 {[%emt 0:00:00]} 51. Re8 {[%emt 0:00:00]} Rd6 {[%emt 0:00:00]} 52. Re7 {[%emt 0:00:00]} Re6 {[%emt 0:00:00]} 53. Rg7 {[%emt 0:00:00]} e3 {[%emt 0:00:00]} 54. fxe3 {[%emt 0:00:00]} Rxe3 {[%emt 0:00:00]} 55. Rg8 {[%emt 0:00:00]} g5 {[%emt 0:00:00]} 56. hxg5 {[%emt 0:00:00]} fxg5 {[%emt 0:00:00]} 57. Ra8 {[%emt 0:00:00]} Re4 {[%emt 0:01:12]} 58. Ra2 {[%emt 0:00:00]} Rc4 {[%emt 0:01:11]} 59. Rb2 {[%emt 0:00:00]} g4 {[%emt 0:00:42]} 60. Rf2+ {[%emt 0:00:00]} Ke5 {[%emt 0:01:22]} 61. Re2+ {[%emt 0:00:00]} Kd4 {[%emt 0:00:17]} 62. Re8 {[%emt 0:00:00]} Rc2+ {[%emt 0:00:16]} 63. Kg1 {[%emt 0:00:00]} Rc5 {[%emt 0:00:51]} 64. Kg2 {[%emt 0:00:00]} Re5 {[%emt 0:00:39]} 65. Rf8 {[%emt 0:00:00]} Kd3 {[%emt 0:00:24]} 66. Rf7 {[%emt 0:00:00]} Ke3 {[%emt 0:01:57]} 67. Rf8 {[%emt 0:00:00]} Kd2 {[%emt 0:01:42]} 68. Rf7 {[%emt 0:00:00]} Re2+ {[%emt 0:00:49]} 69. Kg1 {[%emt 0:00:00]} Ke3 {[%emt 0:00:11]} 70. Rf8 {[%emt 0:00:00]} Ra2 {[%emt 0:00:29]} 71. Rf7 {[%emt 0:00:00]} Ke4 {[%emt 0:00:26]} 72. Rf4+ {[%emt 0:00:00]} Ke3 {[%emt 0:00:01]} 73. Rf8 {[%emt 0:00:00]} Ra4 {[%emt 0:00:59]} 74. Kg2 {[%emt 0:00:00]} Ra2+ {[%emt 0:00:45]} 75. Kg1 {[%emt 0:00:00]} Ke4 1/2-1/2

[Event "KAZ-ch Men 2017"]
[Site "Almaty"]
[Date "2017.04.15"]
[Round "5"]
[White "Agmanov, Zhandos"]
[Black "Akhmetov, Ayan"]
[Result "1-0"]
[ECO "C41"]
[WhiteElo "2377"]
[BlackElo "2311"]
[Annotator "ChessBase"]
[PlyCount "129"]
[EventDate "2017.??.??"]
[EventType "tourn"]
[EventCountry "KAZ"]
[SourceTitle "playchess.com"]
[Source "ChessBase"]
[SourceQuality "1"]
[TimeControl "40/5400+30:1800+30"]

1. e4 {[%emt 0:00:00]} d6 {[%emt 0:13:00]} 2. d4 {[%emt 0:00:49]} Nf6 {[%emt 0:00:06]} 3. Nc3 {[%emt 0:00:49]} e5 {[%emt 0:00:16]} 4. Nf3 {[%emt 0:00:25]} Nbd7 {[%emt 0:00:09]} 5. Bc4 {[%emt 0:00:49]} Be7 {[%emt 0:00:07]} 6. O-O {[%emt 0:00:07]} O-O {[%emt 0:00:04]} 7. a4 {[%emt 0:01:16]} c6 {[%emt 0:02:37]} 8. Ba2 {[%emt 0:00:20]} h6 {[%emt 0:05:03]} 9. h3 {[%emt 0:05:32]} Re8 {[%emt 0:00:32]} 10. Re1 {[%emt 0:03:15]} Qc7 {[%emt 0:00:41]} 11. Nh4 {[%emt 0:10:40]} Nf8 {[%emt 0:03:26]} 12. f4 {[%emt 0:05:54]} exd4 {[%emt 0:04:24]} 13. Qxd4 {[%emt 0:06:06]} d5 {[%emt 0:00:49]} 14. e5 {[%emt 0:03:11]} Ne6 {[%emt 0:29:03]} 15. Qd1 {[%emt 0:03:39]} Qb6+ {[%emt 0:00:43]} 16. Kh2 {[%emt 0:12:28]} Ne4 {[%emt 0:00:33]} 17. Nf5 {[%emt 0:05:34]} N6c5 {[%emt 0:02:31]} 18. Nxe7+ {[%emt 0:04:24]} Rxe7 {[%emt 0:00:03]} 19. a5 {[%emt 0:09:05]} Qc7 {[%emt 0:08:09]} 20. Nxe4 {[%emt 0:00:26]} Nxe4 {[%emt 0:01:29]} 21. c4 {[%emt 0:00:43]} Be6 {[%emt 0:01:41]} 22. cxd5 {[%emt 0:05:28]} cxd5 {[%emt 0:00:01]} 23. Be3 {[%emt 0:04:29]} Qxa5 {[%emt 0:02:00]} 24. Qd4 {[%emt 0:00:33]} Qb5 {[%emt 0:05:19]} 25. Bb1 {[%emt 0:03:01]} Rc8 {[%emt 0:04:54]} 26. Bd3 {[%emt 0:00:48]} Qd7 {[%emt 0:00:32]} 27. Qxa7 {[%emt 0:03:34]} f6 {[%emt 0:01:09]} 28. Bxe4 {[%emt 0:03:11]} dxe4 {[%emt 0:00:09]} 29. Rad1 {[%emt 0:00:14]} Qb5 {[%emt 0:01:15]} 30. exf6 {[%emt 0:00:31]} gxf6 {[%emt 0:00:06]} 31. Qd4 {[%emt 0:00:09]} Qf5 {[%emt 0:02:04]} 32. Rc1 {[%emt 0:05:20]} Rxc1 {[%emt 0:01:37]} 33. Rxc1 {[%emt 0:00:01]} Rd7 {[%emt 0:00:33]} 34. Qb6 {[%emt 0:00:10]} h5 {[%emt 0:04:44]} 35. Rc5 {[%emt 0:01:09]} Bd5 {[%emt 0:00:01]} 36. Rc8+ {[%emt 0:00:43]} Kh7 {[%emt 0:00:08]} 37. Rf8 {[%emt 0:00:21]} Bc6 {[%emt 0:02:33]} 38. Qa7 {[%emt 0:01:35]} Qg6 {[%emt 0:00:16]} 39. Qb8 {[%emt 0:00:41]} Qg7 {[%emt 0:00:06]} 40. Qe8 {[%emt 0:01:42]} Rd5 {[%emt 0:31:44]} 41. Qxe4+ {[%emt 0:05:55]} Kh6 {[%emt 0:00:00]} 42. Rc8 {[%emt 0:09:43]} Rd8 {[%emt 0:00:00]} 43. Rxc6 {[%emt 0:02:10]} bxc6 {[%emt 0:00:00]} 44. Qxc6 {[%emt 0:00:28]} Qe7 {[%emt 0:00:00]} 45. Bc5 {[%emt 0:00:42]} Qf7 {[%emt 0:00:00]} 46. b4 {[%emt 0:02:24]} Kg6 {[%emt 0:00:00]} 47. Qe4+ {[%emt 0:04:16]} Kg7 {[%emt 0:00:00]} 48. Bf2 {[%emt 0:03:19]} Rd2 {[%emt 0:00:00]} 49. Be1 {[%emt 0:00:01]} Rb2 {[%emt 0:00:00]} 50. Bc3 {[%emt 0:00:09]} Rb3 {[%emt 0:00:00]} 51. Qd4 {[%emt 0:00:33]} Qe6 {[%emt 0:00:00]} 52. Qc5 {[%emt 0:00:17]} Kg6 {[%emt 0:03:35]} 53. f5+ {[%emt 0:01:22]} Qxf5 {[%emt 0:00:08]} 54. Qc4 {[%emt 0:00:04]} Qb1 {[%emt 0:01:37]} 55. Qg8+ {[%emt 0:00:50]} Kf5 {[%emt 0:01:42]} 56. Qf7 {[%emt 0:00:16]} Ke4 {[%emt 0:01:23]} 57. Qxf6 {[%emt 0:00:23]} Kd5 {[%emt 0:00:40]} 58. Qe5+ {[%emt 0:00:32]} Kc6 {[%emt 0:00:03]} 59. Qe6+ {[%emt 0:00:13]} Kc7 {[%emt 0:02:01]} 60. Be5+ {[%emt 0:00:33]} Kd8 {[%emt 0:00:02]} 61. Bd6 {[%emt 0:01:10]} Qc2 {[%emt 0:00:53]} 62. Qe7+ {[%emt 0:00:22]} Kc8 {[%emt 0:00:02]} 63. Qe8+ {[%emt 0:01:28]} Kb7 {[%emt 0:00:01]} 64. Qd7+ {[%emt 0:00:28]} Ka6 {[%emt 0:01:45]} 65. Bc5 {[%emt 0:00:17]} 1-0

[Event "KAZ-ch Men 2017"]
[Site "Almaty"]
[Date "2017.04.19"]
[Round "9"]
[White "Agmanov, Zhandos"]
[Black "Makhnyov, Denis"]
[Result "1/2-1/2"]
[ECO "C67"]
[WhiteElo "2377"]
[BlackElo "2379"]
[Annotator "RC"]
[PlyCount "54"]
[EventDate "2017.??.??"]
[EventType "tourn"]
[EventCountry "KAZ"]
[SourceTitle "playchess.com"]
[Source "ChessBase"]
[SourceQuality "1"]
[TimeControl "40/5400+30:1800+30"]

1. e4 {[%emt 0:00:00]} e5 {[%emt 0:01:15]} 2. Nf3 {[%emt 0:00:00]} Nc6 {[%emt 0:00:05]} 3. Bb5 {[%emt 0:00:37]} Nf6 {[%emt 0:00:05]} 4. O-O {[%emt 0:00:36]} Nxe4 {[%emt 0:00:05]} 5. Re1 {[%emt 0:00:24]} Nd6 {[%emt 0:00:04]} 6. Nxe5 {[%emt 0:00:10]} Be7 {[%emt 0:00:04]} 7. Bf1 {[%emt 0:00:54]} O-O {[%emt 0:00:08]} 8. d4 {[%emt 0:01:22]} Nf5 {[%emt 0:00:07]} 9. Nf3 {[%emt 0:00:31]} d5 {[%emt 0:00:37]} 10. c3 {[%emt 0:00:38]} Bf6 {[%emt 0:01:31]} 11. Bd3 {[%emt 0:03:35]} g6 {[%emt 0:00:21]} 12. Nbd2 {[%emt 0:01:25]} Nd6 {[%emt 0:01:04]} 13. Nf1 {[%emt 0:00:31]} Bf5 {[%emt 0:01:56]} 14. Ng3 {[%emt 0:05:52]} Bxd3 {[%emt 0:00:05]} 15. Qxd3 {[%emt 0:00:02]} Ne7 {[%emt 0:00:12]} 16. Bf4 {[%emt 0:01:07]} c6 {[%emt 0:03:07]} 17. Bxd6 {[%emt 0:05:33]} Qxd6 {[%emt 0:00:12]} 18. Re2 {[%emt 0:00:06]} Qd8 {[%emt 0:03:34]} 19. b3 {[%emt 0:06:05]} Nc8 {[%emt 0:09:40]} 20. Rae1 {[%emt 0:01:17]} Nd6 {[%emt 0:01:38]} 21. c4 {[%emt 0:01:39]} dxc4 {[%emt 0:00:06]} 22. bxc4 {[%emt 0:00:04]} Qa5 {[%emt 0:00:01]} 23. Qb3 {[%emt 0:09:38]} c5 {[%emt 0:02:05]} 24. d5 {[%emt 0:03:36]} b5 {[%emt 0:01:58]} 25. Ne4 {[%emt 0:01:51]} Nxe4 {[%emt 0:00:02]} 26. Rxe4 {[%emt 0:00:05]} Rab8 {[%emt 0:00:33]} 27. Ne5 {[%emt 0:15:06]} Rfe8 1/2-1/2